Cogmind - Beta 13 @@@ ROGUE MODE // 2024.06.05 @ 14:31:36 Player: N.W.L Result: Destroyed by Y-45 Defender with Beam Rifle Performance ------------- Evolutions (2) 1000 Regions Visited (7) 1400 Robots Destroyed (165) 825 Value Destroyed (4547) 4547 Prototype IDs (19) 380 Alien Tech Used (0) 0 Bonus (1005) 1005 TOTAL SCORE: 9157 Bonus ------- High Alert Combat Kills 805 Entered Garrisons 200 Cogmind --------- Core Integrity 0/550 Matter 12/300 Energy 95/100 System Corruption 13% Temperature Cool (9) Movement Core (50) Location -8/Storage Parts ------- > --- POWER (1) -------- (None) > --- PROPULSION (4) --- (None) > --- UTILITY (3) ------ System Shield Authchip [R/Combat] > --- WEAPON (3) ------- (None) > --- INVENTORY (5) ---- Reinforced Ion Engine Titanium Leg High-capacity Storage Unit High-capacity Matter Pod (0) Subdweller Shrapnel Launcher Peak State ------------ > --- POWER ------------ Heavy Ion Engine > --- PROPULSION ------- Advanced Treads Titanium Leg Cargo Legs > --- UTILITY ---------- Huge Storage Unit Improved Utility Shielding Hardened Light Armor Plating Hacking Suite Hacking Suite > --- WEAPON ----------- Heavy Particle Cannon Flak Gun Flak Gun > --- INVENTORY -------- Heavy Ion Engine Medium Treads Medium Treads Medium Treads Medium Treads High-capacity Matter Pod Advanced Visual Processing Unit Seismic Detector Particle Charger Makeshift Light Armor Plating Reactive Plating Makeshift Kinetic Plating System Shield Heavy EM Shotgun Heavy EM Shotgun Light EM Pulse Cannon Light EM Pulse Cannon Battle Cannon Grenade Launcher Rocket Launcher Rocket Launcher Subdweller Shrapnel Launcher Improved Grenade Launcher Improved Datajack Ripper [Rating: 55] Favorites ----------- Power Ion Engine Engine Ion Engine Power Core Nuclear Core Propulsion Light Treads Treads Light Treads Leg Cargo Legs Utility Hacking Suite Device Seismic Detector Storage High-capacity Storage Unit Hackware Hacking Suite Protection Makeshift Kinetic Plating Weapon Light EM Pulse Cannon Energy Gun Heavy EM Shotgun Energy Cannon Light EM Pulse Cannon Ballistic Gun Assault Rifle Ballistic Cannon Battle Cannon Launcher Grenade Launcher Special Weapon Enhanced Flamer Slashing Weapon Ripper Special Melee Weapon Improved Datajack Build | -11 -10 -10 -10 -8 -8 -8 -8 ------- Run | Yrd Mat Min Sub Mat Gar Mat Sto Slots Evolved 4 | . . . . 4 . . . Power . | . . . . . . . . Propulsion 2 | . . . . 2 . . . Utility 1 | . . . . 1 . . . Weapon 1 | . . . . 1 . . . Parts Attached 140 | 7 22 . 33 37 23 18 . Power 12 | 1 2 . 5 3 . 1 . Engine 11 | 1 2 . 5 2 . 1 . Core 1 | . . . . 1 . . . Reactor . | . . . . . . . . Propulsion 21 | 2 5 . 3 5 1 5 . Treads 19 | 2 5 . 2 4 1 5 . Leg 2 | . . . 1 1 . . . Wheel . | . . . . . . . . Hover . | . . . . . . . . Flight . | . . . . . . . . Utility 27 | 1 5 . 6 6 4 5 . Device 6 | . 1 . 1 3 1 . . Storage 5 | 1 3 . . 1 . . . Processor . | . . . . . . . . Hackware 4 | . . . 2 . . 2 . Protection 12 | . 1 . 3 2 3 3 . Artifact . | . . . . . . . . Weapon 80 | 3 10 . 19 23 18 7 . Energy Gun 3 | 1 . . . 2 . . . Energy Cannon 26 | . 3 . 6 11 5 1 . Ballistic Gun 15 | 2 3 . 1 3 5 1 . Ballistic Cannon 4 | . . . 1 1 2 . . Launcher 24 | . 4 . 8 3 4 5 . Special Weapon 3 | . . . 2 1 . . . Impact Weapon . | . . . . . . . . Slashing Weapon 2 | . . . 1 1 . . . Piercing Weapon . | . . . . . . . . Special Melee Weapon 3 | . . . . 1 2 . . Unidentified Prototypes 2 | . . . . 2 . . . Parts Lost 16 | . . . 4 1 5 5 1 Power 2 | . . . 2 . . . . Propulsion 5 | . . . . . 1 3 1 Utility 5 | . . . 1 1 3 . . Weapon 4 | . . . 1 . 1 2 . Highest Loss Streak 4 | . . . 2 1 4 4 1 To Critical Strikes . | . . . . . . . . Average Slot Usage (%) 95 | . 99 100 97 89 91 91 27 Engine 11 | . 14 14 13 6 7 7 . Treads 19 | . 28 28 23 10 7 24 9 Leg 5 | . . . 1 11 15 5 . Device 4 | . 8 . . 9 7 4 . Storage 11 | . 14 14 13 7 7 8 . Hackware 6 | . . . 3 15 14 3 18 Protection 9 | . 5 14 13 3 6 12 . Energy Gun 2 | . . . . 10 1 . . Energy Cannon 8 | . 3 28 10 9 6 7 . Ballistic Gun 6 | . 23 . . 1 12 3 . Launcher 6 | . . . 13 . . 5 . Naked Turns . | . . . . . . . . Heaviest Build 119 | 12 56 56 60 105 112 119 . Greatest Support 112 | 40 40 40 55 72 72 112 3 Greatest Overweight (x) 19 | . 1 1 19 1 4 1 . Average Overweight (x) . | . . 1 1 . 1 . . Largest Inventory Capacity 25 | 8 20 20 20 25 25 25 5 Average Capacity 20 | 7 14 20 20 22 25 23 5 Most Carried 25 | 1 20 20 20 25 25 25 5 Average Carried 19 | . 12 19 19 20 24 21 5 Final Capacity 25 | 8 20 20 20 25 25 5 5 Final Carried 25 | 1 20 20 17 25 23 5 5 Class Distribution -------------------- 56% | Mutant 15% | Hacker-Tank 12% | Hacker-Gunner 8% | Hacker-Mutant 5% | Tank Dominant Class ---------------- Mutant | -10/Materials Mutant | -10/Mines Mutant | -10/Subcaves Hacker-Gunner | -8/Materials Hacker-Tank | -8/Garrison Tank | -8/Materials Mutant | -8/Storage Resources | -11 -10 -10 -10 -8 -8 -8 -8 ----------- Run | Yrd Mat Min Sub Mat Gar Mat Sto Matter Collected 3548 | 182 844 . 627 779 732 384 . Remotely . | . . . . . . . . Salvage Created 5171 | . 1148 97 325 1705 916 980 . Parts 336 | . 73 3 20 126 58 56 . Haulers Intercepted 11 | . 2 . . 6 . 3 . Recyclers Shooed 6 | . 3 . . 1 . 2 . Parts Field Recycled . | . . . . . . . . Retrieved Matter . | . . . . . . . . Parts Self-Destructed 11 | . . . 11 . . . . Prevented . | . . . . . . . . Kills | -11 -10 -10 -10 -8 -8 -8 -8 ------- Run | Yrd Mat Min Sub Mat Gar Mat Sto Combat Hostiles Destroyed 111 | . 20 . 14 26 33 18 . Guns 33 | . 9 . 1 10 11 2 . Cannons 17 | . 2 . 1 5 5 4 . AOE 59 | . 9 . 12 10 16 12 . Classes Destroyed 15 | . 9 . 1 2 1 2 . Worker 8 | . 2 . . 4 . 2 . Builder 7 | . 1 . . 2 . 4 . Tunneler 2 | . . . . . . 2 . Hauler 11 | . 2 . . 6 . 3 . Recycler 11 | . 3 1 . 3 . 4 . Mechanic 1 | . 1 . . . . . . Operator 5 | . 3 . . 2 . . . Watcher 9 | . 3 . . 5 . 1 . Swarmer 26 | . 3 . . 9 11 3 . Grunt 49 | . 17 . . 9 11 12 . Duelist 2 | . . . . 1 . 1 . Protector 1 | . . . . . . 1 . Sentry 15 | . . . . 7 7 1 . Programmer 4 | . . . . . 4 . . Subdweller 14 | . . . 14 . . . . Best Kill Streak 15 | . 7 1 7 10 12 15 . Combat Bots Only 12 | . 5 . 7 7 12 6 . Max Kills in Single Turn 4 | . 2 1 2 4 4 3 . Gunslinging . | . . . . . . . . Exploded 4 | . 2 . 2 3 4 2 . Melee . | . . . . . . . . Uniques/NPCs Destroyed . | . . . . . . . . Combat | -11 -10 -10 -10 -8 -8 -8 -8 -------- Run | Yrd Mat Min Sub Mat Gar Mat Sto Hostile Shots Fired 416 | . 55 . 67 83 124 84 3 Missed 124 | . 14 . 26 28 27 28 1 Damage Taken 4931 | . 532 . 939 817 1507 1106 30 Core 806 | . 93 . 155 71 148 324 15 Absorbed by Shields 12 | . . . . . 12 . . Ignored by Resistances 2 | . . . 2 . . . . Core Remaining (%) 50 | 100 . . . . . . . Volleys Fired 345 | . 86 1 55 77 77 49 . Largest 3 | . 2 2 2 3 3 3 . Hottest 180 | . 112 112 180 175 159 170 . Shots Fired 639 | . 165 2 81 164 147 80 . Gun 300 | . 140 . 1 77 72 10 . Cannon 258 | . 13 2 51 76 66 50 . Launcher 79 | . 12 . 27 11 9 20 . Special 2 | . . . 2 . . . . Kinetic 282 | . 140 . 17 7 79 39 . Thermal 79 | . 7 . 2 10 43 17 . Explosive 77 | . 12 . 27 11 7 20 . Electromagnetic 201 | . 6 2 35 136 18 4 . Robot Hit Streak 15 | . 9 5 7 15 11 13 . Robot Miss Streak 8 | . 3 . 2 5 8 6 . Penetration Max . | . . . . . . . . Secondary Targets . | . . . . . . . . Shots Hit Robots 361 | . 99 1 32 89 92 48 . Core Hits 288 | . 54 1 24 63 87 59 . Critical Kills . | . . . . . . . . Critical Parts Destroyed 1 | . 1 . . . . . . Critical Strikes 5 | . 1 . 1 1 . 2 . Destroy 1 | . 1 . . . . . . Blast 3 | . . . 1 . . 2 . Corrupt 1 | . . . . 1 . . . Melee Attacks 18 | . . . 15 3 . . . Impact . | . . . . . . . . Slashing 18 | . . . 15 3 . . . Piercing . | . . . . . . . . Sneak Attacks . | . . . . . . . . Combat Hostiles . | . . . . . . . . Follow-up Attacks . | . . . . . . . . Damage Inflicted 13323 | . 2061 22 1750 3107 2952 3431 . Guns 3287 | . 1128 . 21 869 1119 150 . Cannons 2891 | . 192 22 283 876 745 773 . Explosions 7121 | . 740 . 1423 1362 1088 2508 . Melee . | . . . . . . . . Ramming 1 | . 1 . . . . . . Kinetic 3694 | . 1128 . 227 76 1718 545 . Thermal 1229 | . 190 . 23 398 283 335 . Explosive 6136 | . 638 . 1423 989 578 2508 . Electromagnetic 2263 | . 104 22 77 1644 373 43 . Impact . | . . . . . . . . Slashing . | . . . . . . . . Piercing . | . . . . . . . . Highest Corruption 13 | . . . . 1 12 12 13 Average Corruption 3 | . . . . 1 2 12 12 Corruption Purged . | . . . . . . . . Corruption Blocked . | . . . . . . . . Effects 49 | . . . . 10 13 23 3 Message Errors 12 | . . . . 2 6 3 1 Matter Fused 12 | . . . . 3 2 7 . Heat Flow Errors 4 | . . . . . 2 2 . Energy Discharges 6 | . . . . 1 1 3 1 Parts Rejected 1 | . . . . . . 1 . Data Loss (minor) 10 | . . . . 3 2 5 . Misfires 1 | . . . . 1 . . . Misdirections 1 | . . . . . . . 1 Weapon Failures 2 | . . . . . . 2 . Overload Shots . | . . . . . . . . Overflow Damage 197 | . . . 3 71 70 53 . Projectiles 53 | . . . . 3 16 34 . Explosions 144 | . . . 3 68 54 19 . Melee . | . . . . . . . . Knockbacks 6 | . . . 2 . . 4 . Impact . | . . . . . . . . Kinetic 6 | . . . 2 . . 4 . Secondary . | . . . . . . . . Self-Inflicted Damage 359 | . 51 . 71 87 97 53 . Shots 12 | . 2 . 3 3 3 1 . Rammed 1 | . 1 . . . . . . Targets Rammed 1 | . 1 . . . . . . Kicked . | . . . . . . . . Crushed . | . . . . . . . . Highest Temperature 549 | . 210 60 . 266 379 549 . Average Temperature 130 | . 50 34 . 62 120 206 . Received Heat Transfer 1365 | . 264 . 69 351 276 387 18 Effects 28 | . . . . 3 2 23 . Shutdowns 4 | . . . . . . 4 . Energy Bleed 2 | . . . . . . 2 . Interference 9 | . . . . 3 2 4 . Matter Decay 3 | . . . . . . 3 . Short Circuit 1 | . . . . . . 1 . Damage (minor) 2 | . . . . . . 2 . Damage (major) 6 | . . . . . . 6 . Damage (core) 1 | . . . . . . 1 . Siege Activations . | . . . . . . . . Robots Corrupted 4 | . . . . 3 1 . . Combat Hostiles 2 | . . . . 1 1 . . Parts Fried 12 | . 1 . . 8 3 . . Impact Corruptions . | . . . . . . . . Robots Melted . | . . . . . . . . Combat Hostiles . | . . . . . . . . Parts Melted 1 | . . . . . 1 . . Heat Transferred 1720 | . 335 . 160 337 407 481 . Parts Sabotaged . | . . . . . . . . Parts Stolen . | . . . . . . . . Parts Stripped . | . . . . . . . . Power Chain Reactions 8 | . 1 . . 6 1 . . Alert | -11 -10 -10 -10 -8 -8 -8 -8 ------- Run | Yrd Mat Min Sub Mat Gar Mat Sto Peak Influence 1206 | . 367 147 . 412 1206 1031 435 Initial 587 | . . 142 . 24 235 587 435 Average 348 | . 103 144 . 155 799 821 323 Maximum Alert Level 4 | . 1 . . 2 4 3 2 Low Security (%) 51 | 100 81 100 . 69 . . . Level 1 22 | . 18 . . 27 29 . 82 Level 2 3 | . . . . 2 3 28 18 Level 3 15 | . . . . . 43 71 . Level 4 6 | . . . . . 24 . . Level 5 . | . . . . . . . . High Security . | . . . . . . . . Max Security . | . . . . . . . . Squads Dispatched 17 | . 5 . . 8 . 4 . Investigation 4 | . 3 . . 1 . . . Extermination . | . . . . . . . . Reinforcement 5 | . 2 . . 1 . 2 . Assault 2 | . . . . . . 2 . Garrison 6 | . . . . 6 . . . Intercept . | . . . . . . . . Searches Triggered . | . . . . . . . . Construction Impeded 2 | . . . . 1 . 1 . Haulers Reinforced . | . . . . . . . . Active Scanning Responses . | . . . . . . . . Cargo Convoy Interrupts . | . . . . . . . . Stealth | -11 -10 -10 -10 -8 -8 -8 -8 --------- Run | Yrd Mat Min Sub Mat Gar Mat Sto Distress Signals 5 | . . . . 1 . 4 . Communications Jammed . | . . . . . . . . Distress Signals . | . . . . . . . . Times Spotted 151 | . 32 . 17 36 29 35 2 Peak Tracking Total 11 | . 4 . 4 4 6 11 2 Tactical Retreats 6 | . . . 2 2 2 . . Traps | -11 -10 -10 -10 -8 -8 -8 -8 ------- Run | Yrd Mat Min Sub Mat Gar Mat Sto Traps Triggered 11 | . . . 1 1 7 1 1 Indirectly . | . . . . . . . . Trap Hack Attempts 10 | . . . . 5 5 . . Triggered . | . . . . . . . . Disarmed . | . . . . . . . . Reprogrammed 4 | . . . . 2 2 . . Reused . | . . . . . . . . Traps Extracted . | . . . . . . . . Installed . | . . . . . . . . Triggered . | . . . . . . . . Machines | -11 -10 -10 -10 -8 -8 -8 -8 ---------- Run | Yrd Mat Min Sub Mat Gar Mat Sto Machines Disabled 15 | . 1 . 1 5 3 5 . Max in Single Turn 2 | . 1 . 1 2 1 1 . Garrison Relay 1 | . . . . . 1 . . Machines Repaired . | . . . . . . . . Machines Dismantled . | . . . . . . . . Machines Sabotaged . | . . . . . . . . Overloaded Fab Kills . | . . . . . . . . Hacking | -11 -10 -10 -10 -8 -8 -8 -8 --------- Run | Yrd Mat Min Sub Mat Gar Mat Sto Machines Accessed 19 | . 6 . 1 10 1 . 1 Terminals 15 | . 4 . . 9 1 . 1 Fabricators . | . . . . . . . . Repair Stations . | . . . . . . . . Recycling Units 2 | . 2 . . . . . . Scanalyzers . | . . . . . . . . Garrison Access 1 | . . . . 1 . . . Total Hacks 66 | . 19 . 1 37 6 . 3 Successful 39 | . 12 . 1 24 1 . 1 Failed 26 | . 7 . . 12 5 . 2 Catastrophic 2 | . . . . 2 . . . Database Lockouts 1 | . . . . 1 . . . Manual 27 | . 9 . . 18 . . . Terminals 59 | . 14 . . 36 6 . 3 Fabricators . | . . . . . . . . Repair Stations . | . . . . . . . . Recycling Units 5 | . 5 . . . . . . Scanalyzers . | . . . . . . . . Garrison Access 1 | . . . . 1 . . . Terminal Hacks 29 | . 5 . 1 21 1 . 1 Part Schematic 3 | . 1 . . 2 . . . Robot Analysis 2 | . 1 . . 1 . . . Prototype ID Bank 5 | . 2 . . 3 . . . Branch Access Points 1 | . . . . 1 . . . Emergency Access Points 2 | . . . . 1 1 . . Terminal Index 1 | . . . . 1 . . . Alert Level 2 | . . . . 2 . . . Unreport Threat 3 | . . . . 2 . . 1 Locate Traps 1 | . . . . 1 . . . Reprogram Traps 1 | . . . . 1 . . . Maintenance Status 1 | . . . . 1 . . . Surveillance Status 1 | . . . . 1 . . . Hauler Manifests 1 | . . . . 1 . . . Registered Components 1 | . . . . 1 . . . Registered Prototypes 1 | . . . . 1 . . . Zone Layout 2 | . 1 . . 1 . . . Derelict Proto ID Bank 1 | . . . 1 . . . . Fabricator Hacks . | . . . . . . . . Repair Station Hacks . | . . . . . . . . Recycling Unit Hacks 2 | . 2 . . . . . . Retrieve Components 2 | . 2 . . . . . . Scanalyzer . | . . . . . . . . Garrison Access Hacks 1 | . . . . 1 . . . Unlock Access 1 | . . . . 1 . . . Unauthorized Hacks 7 | . 5 . . 2 . . . Terminals 5 | . 3 . . 2 . . . Assimilate 1 | . . . . 1 . . . Botnet 4 | . 3 . . 1 . . . Fabricators . | . . . . . . . . Repair Stations . | . . . . . . . . Recycling Units 2 | . 2 . . . . . . Tunnel 2 | . 2 . . . . . . Scanalyzers . | . . . . . . . . Garrison Access . | . . . . . . . . Data Cores Recovered 2 | . . . . 2 . . . Used . | . . . . . . . . Hacking Detections 15 | . 4 . . 9 1 . 1 Full Trace Events 4 | . 1 . . 1 1 . 1 Feedback Events . | . . . . . . . . Feedback Blocked . | . . . . . . . . Robot Schematics Acquired . | . . . . . . . . Robots Built . | . . . . . . . . Authchips . | . . . . . . . . Time . | . . . . . . . . Total Robot Build Rating . | . . . . . . . . Part Schematics Acquired 3 | . 1 . . 2 . . . Parts Built . | . . . . . . . . Authchips . | . . . . . . . . Time . | . . . . . . . . Total Part Build Rating . | . . . . . . . . Parts Repaired . | . . . . . . . . Time . | . . . . . . . . Parts Recycled . | . . . . . . . . Recycled Matter . | . . . . . . . . Retrieved Matter . | . . . . . . . . Retrieved Components 19 | . 19 . . . . . . Parts Scanalyzed . | . . . . . . . . Part Schematics Acquired . | . . . . . . . . Parts Damaged . | . . . . . . . . Bothacking | -11 -10 -10 -10 -8 -8 -8 -8 ------------ Run | Yrd Mat Min Sub Mat Gar Mat Sto Used RIF Installer . | . . . . . . . . Robots Hacked . | . . . . . . . . Non-combat . | . . . . . . . . Combat . | . . . . . . . . Robot Hacks Applied . | . . . . . . . . Relay Couplers Released 4 | . . . . . 4 . . Machine Destruction 4 | . . . . . 4 . . Fabnet Peak Effective % . | . . . . . . . . Robots Rewired . | . . . . . . . . Allies Hacked . | . . . . . . . . Hacks Repelled . | . . . . . . . . Allies | -11 -10 -10 -10 -8 -8 -8 -8 -------- Run | Yrd Mat Min Sub Mat Gar Mat Sto Total Allies 1 | . . . . 1 . . . Largest Group 1 | . . . . 1 . . . Highest-Rated Group 10 | . . . . 10 . . . Highest-Rated Ally 10 | . . . . 10 . . . Total Orders 1 | . . . . 1 . . . STAY 1 | . . . . 1 . . . Ally Attacks . | . . . . . . . . Total Damage . | . . . . . . . . Kills . | . . . . . . . . Allies Corrupted . | . . . . . . . . Allies Melted . | . . . . . . . . Intel | -11 -10 -10 -10 -8 -8 -8 -8 ------- Run | Yrd Mat Min Sub Mat Gar Mat Sto Robot Analysis Total 2 | . 1 . . 1 . . . Derelict Logs Recovered . | . . . . . . . . Drone Launches . | . . . . . . . . Drone Recoveries . | . . . . . . . . Exploration | -11 -10 -10 -10 -8 -8 -8 -8 ------------- Run | Yrd Mat Min Sub Mat Gar Mat Sto Turns Passed 11305 | 65 1768 337 4791 2204 1613 477 50 Spaces Moved 4587 | 37 762 92 1924 918 619 172 63 Core 114 | 4 . . 4 . . 43 63 Treads 2563 | 33 762 92 1549 52 1 74 . Legs 1910 | . . . 371 866 618 55 . Wheels . | . . . . . . . . Hover . | . . . . . . . . Flight . | . . . . . . . . Fastest Speed 50 | 50 160 240 200 130 200 50 50 Average Speed 207 | 148 186 240 233 190 200 173 50 Slowest Speed 1000 | 160 240 240 1000 225 465 240 50 Overloaded Moves . | . . . . . . . . Propulsion Burnouts . | . . . . . . . . Robots Hopped . | . . . . . . . . Cave-ins Triggered . | . . . . . . . . Exploration Rate (%) 47 | 4 90 24 82 76 70 24 12 Regions Visited 7 Branch Regions 3 Pre-discovered Areas 2 | . 2 . . . . . . Known Exits Taken 2 | . . . . 1 . 1 . Unknown Exits Taken 4 | 1 1 1 1 . . . . Scrap Searched 12 | . . 1 11 . . . . Spaces Dug 23 | . 7 . 1 15 . . . Terrain Destroyed 423 | . 66 . 157 96 21 83 . Melee 4 | . . . 1 3 . . . Projectile 15 | . . . 1 9 . 5 . AOE 404 | . 66 . 155 84 21 78 . Terrain Rammed . | . . . . . . . . Walls Destroyed . | . . . . . . . . Machines Disabled . | . . . . . . . . Actions | -11 -10 -10 -10 -8 -8 -8 -8 --------- Run | Yrd Mat Min Sub Mat Gar Mat Sto Total 5737 | 44 942 208 2106 1228 858 270 81 Wait 495 | . 38 114 48 144 109 25 17 Move 4581 | 36 761 91 1923 918 618 171 63 Hop . | . . . . . . . . Pick Up 73 | . 24 1 13 24 7 4 . Fast Attach 24 | 7 1 . 5 5 . 6 . Attach 22 | . . . 6 6 4 6 . Detach 5 | 1 . . 2 2 . . . Swap 94 | . 21 . 22 26 19 6 . Drop 54 | . 10 1 17 18 5 3 . Fire 345 | . 86 1 55 77 77 49 . Melee 18 | . . . 15 3 . . . Ram 1 | . . . . . . . 1 Kick . | . . . . . . . . Crush 1 | . 1 . . . . . . Escape Stasis 14 | . . . . . 14 . . Rewire . | . . . . . . . . Trap 10 | . . . . 5 5 . . Miscellaneous . | . . . . . . . . Route ------- -11/Scrapyard -10/Materials (discovered 4 exits: [*Mat x3] / [*Min]) -10/Mines (discovered 2 exits: [*Mat] / *Sub) -10/Subcaves (discovered 2 exits: *Mat x2) -8/Materials (discovered 3 exits: [*Fac] / *Sto / Gar) -8/Garrison (discovered 2 exits: [*Mat x2]) -8/Materials -8/Storage History --------- Turn | Location | Event 13 | -11/Scrapyard | Discovered new exit (range 16) 66 | -11/Scrapyard | Entered Materials 154 | -10/Materials | Discovered new exit (range 15) 314 | -10/Materials | Build established: Mutant 944 | -10/Materials | Discovered new exit (range 4) 1480 | -10/Materials | Discovered new exit (range 16) 1728 | -10/Materials | Discovered new exit (range 6) 1834 | -10/Materials | Entered Mines 1868 | -10/Mines | Discovered new exit (range 7) 1990 | -10/Mines | Received a Rocket Launcher from a helpful Derelict 2159 | -10/Mines | Discovered new exit (range 5) 2171 | -10/Mines | Entered Subcaves 2232 | -10/Subcaves | Shifting Twisted Machinery released Flamer 2266 | -10/Subcaves | Shifting Twisted Machinery released Piercing Trap 2379 | -10/Subcaves | Discovered new exit (range 14) 2389 | -10/Subcaves | Core integrity fell below 50% 2390 | -10/Subcaves | Ambushed by Subdweller buried in earth 2431 | -10/Subcaves | Destroyed 7 combat bots 2745 | -10/Subcaves | A swath of the cavern ceiling suddenly collapsed 3753 | -10/Subcaves | A swath of the cavern ceiling suddenly collapsed 4088 | -10/Subcaves | Shifting Twisted Machinery released Riot Gun 4227 | -10/Subcaves | Core integrity fell below 20% 5651 | -10/Subcaves | Discovered new exit (range 13) 6160 | -10/Subcaves | Visited 4L-MR0's lab 6214 | -10/Subcaves | Found Cargo Legs 6216 | -10/Subcaves | Attached Cargo Legs, gained temporary slots: Utility x2 6526 | -10/Subcaves | Build established: Hacker-Mutant 6962 | -10/Subcaves | Entered Materials 6962 | -8/Materials | Evolved 4 slots: Propulsion x2, Utility x1, Weapon x1 7461 | -8/Materials | Garrison activated, responded to threat 7506 | -8/Materials | Destroyed 7 combat bots 7685 | -8/Materials | Discovered new exit (range 14) 7765 | -8/Materials | Identified exit to Storage 7830 | -8/Materials | Build established: Hacker-Tank 8286 | -8/Materials | Build established: Hacker-Gunner 8698 | -8/Materials | Central database locked down 8928 | -8/Materials | Garrison activated, responded to threat 9166 | -8/Materials | Identified exit to Garrison 9166 | -8/Materials | Entered Garrison 9300 | -8/Garrison | Triggered checkpoint 9598 | -8/Garrison | Build established: Hacker-Tank 9631 | -8/Garrison | Triggered checkpoint 9683 | -8/Garrison | Triggered checkpoint 9739 | -8/Garrison | Destroyed 12 combat bots 9960 | -8/Garrison | Discovered new exit (range 12) 10103 | -8/Garrison | Triggered checkpoint 10315 | -8/Garrison | Discovered new exit (range 9) 10385 | -8/Garrison | Triggered checkpoint 10512 | -8/Garrison | Garrison Relay disabled 10544 | -8/Garrison | System corruption reached 10% 10590 | -8/Garrison | Lost 4 parts (1n2u1w) 10779 | -8/Garrison | Entered Materials 10869 | -8/Materials | Build established: Tank 10959 | -8/Materials | Core integrity fell below 50% 11106 | -8/Materials | Discovered exit to Storage (range 16) 11179 | -8/Materials | First assault squad dispatched 11229 | -8/Materials | Released all parts (8) 11232 | -8/Materials | Core integrity fell below 20% 11256 | -8/Materials | Entered Storage 11258 | -8/Storage | Lost 4 parts (2n2w) 11306 | -8/Storage | Destroyed by Y-45 Defender with Beam Rifle Last Messages --------------- 11236_ M-28 Smith repairs Carbon-fiber Leg. 11236_ U-05 Engineer lays Concrete. 11236_ K-01 Serf collects debris. 11237_ W-25 Informer sends out distress signal. 11239_ System corrupted: Component data lost. 11239_ Acquired Hcp. Storage Unit. 11245_ M-28 Smith repairs Imp. Aluminum Leg. 11250_ R-06 Scavenger collects Wheel. LOCATION=STORAGE GOAL=ESCAPE 11262_ DVFCESJB,NMTZFHAQE9VF|#PZM75H&9HTH 8NO 11265_ K-01 Serf cleans the Component Storage. 11265_ Connecting with Terminal... >>Alert(Purge) Purged threat record, alert level lowered. 11265_ Triggered Shock Trap. 11265_ The floor emits a surge of raw power. 11265_ System corrupted (+1). 11295_ System corrupted: Energy discharge (-39). 11300_ Med. Treads destroyed. Map ----- +----------------------------------------------------+ | ??????????????????????????????????????????????? | | ??#####???????????????????????????????????????? | | ??# #???????????????????????????????????????? | | ??# #???????????????????????????????????????? | | ??# #???????????????????????????????????????? | | ??# #???????????????????????????????????????? | | ??# #???????????????????????????????????????? | | ??# #???????????????????????????????????????? | | ??# #???????????????????????????????????????? | | ??# #???????????????????????????????????????? | | ??# ######??????????????????????????????????? | | ??# # ??????????????????????????????????? | | ??# # ????????????????????????????????? | | ??# # """ ""????????????????????????????????? | | ??# # """ ""????????????????????????????????? | | ??# # """ """???????????????????????????????? | | ??# # """ """ #?????????????????????????????? | | ??# + """ """ #????????????????????????????? | | ??# # #?????????????????????????????? | | ??# ##"T"######?????????????????????????????? | | ??# ######??????????????????????????????????? | | ?## ##??????????????????????????????????????? | | ?# ###############+##+##??????????????????? | | ?# #??????????????????? | | ?# +??????????????????? | | ?# Y @ #??????????????????? | | ?# #####+##+####### #??????????????????? | | ?####### #?????? #??????????????????? | | ???????# #??????? #??????????????????? | | ???????# """" #???????####??????????????????? | | ???????# "??" #?????????????????????????????? | | ???????# "??" #?????????????????????????????? | | ???????# "??" #?????????????????????????????? | | ???????# "??" #?????????????????????????????? | | ???????# """" #?????????????????????????????? | | ???????# #?????????????????????????????? | | ???????##########?????????????????????????????? | | ??????????????????????????????????????????????? | | ??????????????????????????????????????????????? | | ??????????????????????????????????????????????? | | ??????????????????????????????????????????????? | | ??????????????????????????????????????????????? | | ??????????????????????????????????????????????? | | ??????????????????????????????????????????????? | | ??????????????????????????????????????????????? | | ??????????????????????????????????????????????? | | ??????????????????????????????????????????????? | | ??????????????????????????????????????????????? | | ??????????????????????????????????????????????? | | ??????????????????????????????????????????????? | +----------------------------------------------------+ Best States ------------- Heat Dissipation 53 Energy Generation 15 Energy Capacity 280 Matter Stores 300 Matter Capacity 300 Sight Range 16 Terrain Scan Density 10 Armor Coverage 800 Resistance: KI 20 Utility Shielding 66 Evasion (%) 55 Recoil Reduction 4 Offensive Hacking 20 Defensive Hacking 10 Authchip Count 2 Item Schematics ----------------- Cargo Storage Unit | -10/Materials | Hacked Lrn. Tractor Beam | -8/Materials | Hacked Arm. Treads | -8/Materials | Hacked Robot Schematics ------------------ None Fabricated ------------ Nothing Alien Tech Used ----------------- None Achievements -------------- Hehehe Challenges ------------ None Game ------ Seed ThermalBladeTrap Manual? 0 Play Time 01:18:34 Cumulative 136.3 hours Start 2024.06.04 @ 16:55:05 End 2024.06.05 @ 14:31:36 Sessions 5 Manual Loads 0 Difficulty Rogue Special Mode None Game No. 64 Rogue 64 Adventurer 0 Explorer 0 Win Type - Total 2 Types 1/0/1/0/0/0/0/0/0 Lore% 62 Gallery% 74 Achievement% 56 Wizard Run 0 Options --------- Layout 1 ASCII 0 Keyboard 0 Movement Mouse Keybinds 0 Fullscreen 2 Font 18/SmallcapsGlow Map View 50x40 Zoom Use 0% Tactical HUD 1 Map Filters NONE Filters NONE Steam 1 RUN: 590b3692-62b8-40b3-8fa6-41de06a9ad1b